[Event "*** Titled Tuesday Blitz"]
[Site "Chess.com"]
[Date "2021.02.02"]
[Round "10"]
[White "GumisGLHF"]
[Black "boasovietica"]
[Result "1-0"]
[WhiteElo "2369"]
[BlackElo "2482"]
[TimeControl "180+1"]
[EndTime "11:56:04 PST"]
[Termination "GumisGLHF won by checkmate"]

1. d4 {[%clk 0:03:00.9]} 1... Nf6 {[%clk 0:02:59.7]} 2. Nf3 {[%clk 0:02:58.9]}
2... g6 {[%clk 0:02:59.6]} 3. c4 {[%clk 0:02:58.7]} 3... Bg7 {[%clk 0:02:59.6]}
4. Nc3 {[%clk 0:02:59]} 4... O-O {[%clk 0:03:00]} 5. e4 {[%clk 0:02:58.9]} 5...
d6 {[%clk 0:02:58.7]} 6. h3 {[%clk 0:02:59.1]} 6... c5 {[%clk 0:02:56.1]} 7. d5
{[%clk 0:02:55.6]} 7... b5 {[%clk 0:02:42.7]} 8. cxb5 {[%clk 0:02:51.8]} 8... a6
{[%clk 0:02:42.6]} 9. a4 {[%clk 0:02:25.5]} 9... Qa5 {[%clk 0:02:24.3]} 10. Nd2
{[%clk 0:02:16]} 10... axb5 {[%clk 0:01:44.9]} 11. Bxb5 {[%clk 0:02:14.7]} 11...
Ba6 {[%clk 0:01:41.9]} 12. O-O {[%clk 0:02:03.1]} 12... Bxb5 {[%clk 0:01:34.8]}
13. Nxb5 {[%clk 0:02:04]} 13... Qxb5 {[%clk 0:01:30.7]} 14. axb5 {[%clk
0:02:03.3]} 14... Rxa1 {[%clk 0:01:31.3]} 15. Qc2 {[%clk 0:01:45.2]} 15... Nbd7
{[%clk 0:01:30.1]} 16. Nc4 {[%clk 0:01:44.3]} 16... Raa8 {[%clk 0:01:09.7]} 17.
Bd2 {[%clk 0:01:30]} 17... Rfb8 {[%clk 0:01:08.6]} 18. Na3 {[%clk 0:01:27.5]}
18... Ne8 {[%clk 0:01:07.5]} 19. Bc3 {[%clk 0:01:27]} 19... Bxc3 {[%clk
0:00:58.3]} 20. Qxc3 {[%clk 0:01:27.9]} 20... Nc7 {[%clk 0:00:58]} 21. Qd3
{[%clk 0:01:15.8]} 21... Ne5 {[%clk 0:00:56]} 22. Qe2 {[%clk 0:01:15.7]} 22...
Ra4 {[%clk 0:00:54.3]} 23. f4 {[%clk 0:01:15.1]} 23... Nd7 {[%clk 0:00:54.6]}
24. e5 {[%clk 0:01:06.4]} 24... Nxd5 {[%clk 0:00:45.9]} 25. e6 {[%clk
0:01:01.9]} 25... N7f6 {[%clk 0:00:42.9]} 26. exf7+ {[%clk 0:01:01.7]} 26...
Kxf7 {[%clk 0:00:43.1]} 27. f5 {[%clk 0:00:56.4]} 27... g5 {[%clk 0:00:35.4]}
28. Qe6+ {[%clk 0:00:48]} 28... Kf8 {[%clk 0:00:35.3]} 29. Re1 {[%clk
0:00:47.7]} 29... Rb4 {[%clk 0:00:32.8]} 30. Qe2 {[%clk 0:00:35.8]} 30... Nf4
{[%clk 0:00:29.2]} 31. Qxe7+ {[%clk 0:00:35]} 31... Kg8 {[%clk 0:00:23.8]} 32.
Qxf6 {[%clk 0:00:34.6]} 32... h6 {[%clk 0:00:04.1]} 33. Re7 {[%clk 0:00:32.3]}
33... Nh5 {[%clk 0:00:01.7]} 34. Qg6+ {[%clk 0:00:31.9]} 34... Kf8 {[%clk
0:00:01.7]} 35. Qf7# {[%clk 0:00:32]} 1-0

[Event "*** Titled Tuesday Blitz"]
[Site "Chess.com"]
[Date "2021.02.02"]
[Round "10"]
[White "mikolka1985"]
[Black "Fandorine"]
[Result "0-1"]
[WhiteElo "2602"]
[BlackElo "2849"]
[TimeControl "180+1"]
[EndTime "11:56:05 PST"]
[Termination "Fandorine won by resignation"]

1. d4 {[%clk 0:03:00.9]} 1... Nf6 {[%clk 0:02:59.6]} 2. c4 {[%clk 0:02:59.1]}
2... g6 {[%clk 0:02:59.8]} 3. g3 {[%clk 0:02:53.4]} 3... Bg7 {[%clk 0:02:59.4]}
4. Bg2 {[%clk 0:02:53.1]} 4... O-O {[%clk 0:03:00.3]} 5. Nc3 {[%clk 0:02:52.3]}
5... d6 {[%clk 0:02:57.4]} 6. Nf3 {[%clk 0:02:52.3]} 6... Nbd7 {[%clk
0:02:57.4]} 7. O-O {[%clk 0:02:52]} 7... e5 {[%clk 0:02:57.1]} 8. e4 {[%clk
0:02:51.5]} 8... exd4 {[%clk 0:02:57.4]} 9. Nxd4 {[%clk 0:02:51]} 9... Nc5
{[%clk 0:02:57.2]} 10. h3 {[%clk 0:02:50.2]} 10... Re8 {[%clk 0:02:57.3]} 11.
Re1 {[%clk 0:02:49.8]} 11... Bd7 {[%clk 0:02:57.9]} 12. Kh2 {[%clk 0:02:42.7]}
12... h5 {[%clk 0:02:52.2]} 13. f3 {[%clk 0:02:26.3]} 13... a5 {[%clk
0:02:39.4]} 14. Be3 {[%clk 0:02:24.7]} 14... g5 {[%clk 0:02:02.4]} 15. Nb3
{[%clk 0:01:46.7]} 15... Ne6 {[%clk 0:01:44.3]} 16. Qd2 {[%clk 0:01:41.6]} 16...
h4 {[%clk 0:01:17.9]} 17. gxh4 {[%clk 0:01:37.4]} 17... Nh5 {[%clk 0:01:13.9]}
18. hxg5 {[%clk 0:01:27.9]} 18... Be5+ {[%clk 0:01:13.2]} 19. Kg1 {[%clk
0:01:27]} 19... Nef4 {[%clk 0:01:10.6]} 20. h4 {[%clk 0:01:25.4]} 20... f6
{[%clk 0:01:11]} 21. g6 {[%clk 0:01:00.6]} 21... f5 {[%clk 0:01:07.9]} 22. Bf2
{[%clk 0:00:53.2]} 22... Qf6 {[%clk 0:01:01.1]} 23. Bd4 {[%clk 0:00:34.9]} 23...
Qxg6 {[%clk 0:00:39.4]} 24. Bxe5 {[%clk 0:00:34]} 24... Rxe5 {[%clk 0:00:39.2]}
25. Nd5 {[%clk 0:00:33.5]} 25... Qg3 {[%clk 0:00:34.9]} 26. Kf1 {[%clk
0:00:27.7]} 26... Qxh4 {[%clk 0:00:30.4]} 27. Nxf4 {[%clk 0:00:24.7]} 27... Nxf4
{[%clk 0:00:30.3]} 28. exf5 {[%clk 0:00:19.8]} 28... Bxf5 {[%clk 0:00:27.4]} 29.
Rxe5 {[%clk 0:00:18.3]} 29... dxe5 {[%clk 0:00:28.3]} 30. Nc5 {[%clk 0:00:15.5]}
30... Rd8 {[%clk 0:00:26.1]} 31. Qf2 {[%clk 0:00:14.5]} 31... Qxf2+ {[%clk
0:00:24.5]} 32. Kxf2 {[%clk 0:00:14.2]} 32... Rd2+ {[%clk 0:00:25]} 33. Kf1
{[%clk 0:00:13.1]} 33... b6 {[%clk 0:00:19.3]} 0-1

[Event "*** Titled Tuesday Blitz"]
[Site "Chess.com"]
[Date "2021.02.02"]
[Round "10"]
[White "Supernotar"]
[Black "ozates"]
[Result "1-0"]
[WhiteElo "2788"]
[BlackElo "2514"]
[TimeControl "180+1"]
[EndTime "11:56:05 PST"]
[Termination "Supernotar won by checkmate"]

1. d4 {[%clk 0:03:00.9]} 1... d5 {[%clk 0:02:59.8]} 2. c4 {[%clk 0:02:59.3]}
2... c6 {[%clk 0:03:00.2]} 3. e3 {[%clk 0:02:55.2]} 3... Nf6 {[%clk 0:02:59.6]}
4. Bd3 {[%clk 0:02:54.4]} 4... dxc4 {[%clk 0:02:54.1]} 5. Bxc4 {[%clk
0:02:54.4]} 5... Nbd7 {[%clk 0:02:49.8]} 6. Nf3 {[%clk 0:02:53]} 6... b5 {[%clk
0:02:49.8]} 7. Bd3 {[%clk 0:02:52.7]} 7... Bb7 {[%clk 0:02:48.1]} 8. O-O {[%clk
0:02:52.7]} 8... e6 {[%clk 0:02:48.4]} 9. a4 {[%clk 0:02:50.7]} 9... a6 {[%clk
0:02:48.1]} 10. b3 {[%clk 0:02:49.4]} 10... Bd6 {[%clk 0:02:48]} 11. Bb2 {[%clk
0:02:49.3]} 11... O-O {[%clk 0:02:47.8]} 12. Nbd2 {[%clk 0:02:48.5]} 12... Qe7
{[%clk 0:02:47.5]} 13. Qe2 {[%clk 0:02:44.8]} 13... e5 {[%clk 0:02:44.7]} 14.
dxe5 {[%clk 0:02:38.9]} 14... Nxe5 {[%clk 0:02:45.6]} 15. Nxe5 {[%clk
0:02:37.2]} 15... Bxe5 {[%clk 0:02:46.5]} 16. Bxe5 {[%clk 0:02:34.2]} 16... Qxe5
{[%clk 0:02:47.4]} 17. Nf3 {[%clk 0:02:34.6]} 17... Qd5 {[%clk 0:02:34.4]} 18.
Qc2 {[%clk 0:02:25.7]} 18... h6 {[%clk 0:02:24.2]} 19. Rfd1 {[%clk 0:02:22.7]}
19... Qh5 {[%clk 0:02:21.8]} 20. Rac1 {[%clk 0:02:16.1]} 20... c5 {[%clk
0:02:17.9]} 21. axb5 {[%clk 0:02:01.3]} 21... Bxf3 {[%clk 0:02:15.2]} 22. gxf3
{[%clk 0:02:02.2]} 22... Qxf3 {[%clk 0:02:11.6]} 23. bxa6 {[%clk 0:01:59.2]}
23... Rfe8 {[%clk 0:01:25.7]} 24. Qe2 {[%clk 0:01:55.2]} 24... Qh3 {[%clk
0:01:23.4]} 25. Qf1 {[%clk 0:01:49.7]} 25... Qh4 {[%clk 0:01:11.7]} 26. Qg2
{[%clk 0:01:37.8]} 26... Rad8 {[%clk 0:01:05.3]} 27. a7 {[%clk 0:01:32.1]} 27...
Ng4 {[%clk 0:00:56.7]} 28. Ra1 {[%clk 0:01:26.9]} 28... Ra8 {[%clk 0:00:49.8]}
29. h3 {[%clk 0:01:17.8]} 29... Nf6 {[%clk 0:00:23.6]} 30. Be2 {[%clk
0:01:13.1]} 30... Ne4 {[%clk 0:00:19.2]} 31. Bf3 {[%clk 0:01:08.8]} 31... f5
{[%clk 0:00:16.8]} 32. Bxe4 {[%clk 0:01:03.9]} 32... fxe4 {[%clk 0:00:16.2]} 33.
Rd7 {[%clk 0:01:03.7]} 33... Qf6 {[%clk 0:00:15.9]} 34. Ra6 {[%clk 0:00:55]}
34... Qc3 {[%clk 0:00:05.8]} 35. Rg6 {[%clk 0:00:50.4]} 35... Kh8 {[%clk
0:00:01.9]} 36. Rgxg7 {[%clk 0:00:37.6]} 36... Rg8 {[%clk 0:00:01.6]} 37. Rh7#
{[%clk 0:00:34.8]} 1-0

[Event "*** Titled Tuesday Blitz"]
[Site "Chess.com"]
[Date "2021.02.02"]
[Round "10"]
[White "Beca95"]
[Black "jefferyx"]
[Result "0-1"]
[WhiteElo "2903"]
[BlackElo "2983"]
[TimeControl "180+1"]
[EndTime "11:56:11 PST"]
[Termination "jefferyx won by resignation"]

1. d4 {[%clk 0:03:00.9]} 1... Nf6 {[%clk 0:03:00.5]} 2. c4 {[%clk 0:03:00.2]}
2... c5 {[%clk 0:03:00.8]} 3. d5 {[%clk 0:02:59.1]} 3... b5 {[%clk 0:03:01.3]}
4. Bg5 {[%clk 0:02:57.8]} 4... bxc4 {[%clk 0:02:50.8]} 5. Nc3 {[%clk 0:02:57.2]}
5... d6 {[%clk 0:02:50.8]} 6. e4 {[%clk 0:02:57.4]} 6... h6 {[%clk 0:02:48.8]}
7. Bh4 {[%clk 0:02:46]} 7... Qa5 {[%clk 0:02:47.9]} 8. Qd2 {[%clk 0:02:19.7]}
8... g5 {[%clk 0:02:45.1]} 9. Bg3 {[%clk 0:02:19.2]} 9... Nbd7 {[%clk
0:02:44.9]} 10. Bxc4 {[%clk 0:02:13.9]} 10... Bg7 {[%clk 0:02:45.3]} 11. Nf3
{[%clk 0:02:10]} 11... Ba6 {[%clk 0:02:36.9]} 12. Bxa6 {[%clk 0:02:01.9]} 12...
Qxa6 {[%clk 0:02:37.8]} 13. e5 {[%clk 0:02:02.2]} 13... Nh5 {[%clk 0:02:29.3]}
14. exd6 {[%clk 0:01:58.7]} 14... exd6 {[%clk 0:02:30.2]} 15. Qe2+ {[%clk
0:01:45.3]} 15... Qxe2+ {[%clk 0:02:29.8]} 16. Kxe2 {[%clk 0:01:46.2]} 16...
Nxg3+ {[%clk 0:02:29.5]} 17. hxg3 {[%clk 0:01:47.1]} 17... Rb8 {[%clk
0:02:28.8]} 18. Rab1 {[%clk 0:01:46.7]} 18... O-O {[%clk 0:02:26.5]} 19. Nd2
{[%clk 0:01:46.6]} 19... Rfe8+ {[%clk 0:02:18.3]} 20. Kd3 {[%clk 0:01:28.9]}
20... Ne5+ {[%clk 0:02:15.7]} 21. Kc2 {[%clk 0:01:29]} 21... Ng4 {[%clk
0:02:16.6]} 22. Nce4 {[%clk 0:01:10.1]} 22... Bd4 {[%clk 0:02:01.6]} 23. f3
{[%clk 0:00:55.3]} 23... Ne3+ {[%clk 0:02:00.2]} 24. Kd3 {[%clk 0:00:55.6]}
24... Nxd5 {[%clk 0:01:57.4]} 25. a3 {[%clk 0:00:38.3]} 25... Re6 {[%clk
0:01:53.6]} 26. Nc4 {[%clk 0:00:34.6]} 26... Rd8 {[%clk 0:01:49.8]} 27. b4
{[%clk 0:00:34.3]} 27... f5 {[%clk 0:01:47.2]} 28. Ned2 {[%clk 0:00:32.4]} 28...
Ne3 {[%clk 0:01:21.1]} 29. Rhe1 {[%clk 0:00:31.5]} 29... Rde8 {[%clk 0:01:21.3]}
30. bxc5 {[%clk 0:00:27.8]} 30... Bxc5 {[%clk 0:01:16.5]} 31. Rb7 {[%clk
0:00:15]} 31... Nxg2 {[%clk 0:01:06]} 32. Rxe6 {[%clk 0:00:14.8]} 32... Rxe6
{[%clk 0:01:06.9]} 33. Rd7 {[%clk 0:00:12]} 33... h5 {[%clk 0:01:04.1]} 34. g4
{[%clk 0:00:08.5]} 34... fxg4 {[%clk 0:01:00.3]} 35. fxg4 {[%clk 0:00:09.4]}
35... Nf4+ {[%clk 0:01:01.2]} 36. Kc2 {[%clk 0:00:09.3]} 36... hxg4 {[%clk
0:01:02.1]} 37. Nf1 {[%clk 0:00:08.3]} 37... d5 {[%clk 0:00:54.6]} 38. Na5
{[%clk 0:00:07.8]} 38... Bf2 {[%clk 0:00:53.5]} 39. Nb7 {[%clk 0:00:06.9]} 39...
g3 {[%clk 0:00:53.1]} 40. Nxg3 {[%clk 0:00:07.4]} 40... Bxg3 {[%clk 0:00:54]}
41. Nd8 {[%clk 0:00:07.6]} 41... Rf6 {[%clk 0:00:50]} 42. Rxa7 {[%clk
0:00:06.7]} 42... g4 {[%clk 0:00:50.1]} 43. a4 {[%clk 0:00:06.9]} 43... Bf2
{[%clk 0:00:50.4]} 44. Ra8 {[%clk 0:00:06.9]} 44... g3 {[%clk 0:00:50.9]} 45.
Ne6+ {[%clk 0:00:06.5]} 45... Kf7 {[%clk 0:00:51.2]} 46. Ng5+ {[%clk 0:00:06.6]}
46... Kg6 {[%clk 0:00:50.1]} 47. Rg8+ {[%clk 0:00:06.5]} 47... Kf5 {[%clk
0:00:50.1]} 48. Nf3 {[%clk 0:00:07]} 48... g2 {[%clk 0:00:46.9]} 49. Nh4+ {[%clk
0:00:07.2]} 49... Bxh4 {[%clk 0:00:46.9]} 0-1

[Event "*** Titled Tuesday Blitz"]
[Site "Chess.com"]
[Date "2021.02.02"]
[Round "10"]
[White "annacramling"]
[Black "NateSolon"]
[Result "0-1"]
[WhiteElo "2118"]
[BlackElo "2499"]
[TimeControl "180+1"]
[EndTime "11:56:11 PST"]
[Termination "NateSolon won by resignation"]

1. d4 {[%clk 0:03:00.9]} 1... d5 {[%clk 0:02:59.3]} 2. c4 {[%clk 0:03:01]} 2...
c6 {[%clk 0:02:59.7]} 3. Nf3 {[%clk 0:03:00]} 3... Nf6 {[%clk 0:02:59.1]} 4. Nc3
{[%clk 0:02:58.4]} 4... e6 {[%clk 0:02:59.4]} 5. e3 {[%clk 0:02:57.9]} 5... Nbd7
{[%clk 0:02:59.5]} 6. Bd3 {[%clk 0:02:53.2]} 6... Bd6 {[%clk 0:02:58.8]} 7. O-O
{[%clk 0:02:51]} 7... dxc4 {[%clk 0:02:59]} 8. Bxc4 {[%clk 0:02:51.1]} 8... b5
{[%clk 0:02:58.7]} 9. Bd3 {[%clk 0:02:50.2]} 9... Bb7 {[%clk 0:02:58.1]} 10. e4
{[%clk 0:02:49.3]} 10... e5 {[%clk 0:02:58.1]} 11. d5 {[%clk 0:02:21]} 11...
cxd5 {[%clk 0:02:45.4]} 12. Nxb5 {[%clk 0:02:19.7]} 12... Bc5 {[%clk 0:02:45.5]}
13. exd5 {[%clk 0:02:17.3]} 13... O-O {[%clk 0:02:43.5]} 14. Bc4 {[%clk
0:02:07.7]} 14... e4 {[%clk 0:02:38.6]} 15. Nfd4 {[%clk 0:01:52]} 15... Ne5
{[%clk 0:02:38.4]} 16. Bb3 {[%clk 0:01:34.4]} 16... Qb6 {[%clk 0:02:31.3]} 17.
Be3 {[%clk 0:01:26.3]} 17... Neg4 {[%clk 0:02:16.2]} 18. Bf4 {[%clk 0:01:03.9]}
18... a6 {[%clk 0:02:12.1]} 19. Bc7 {[%clk 0:01:03.6]} 19... Bxd4 {[%clk
0:02:01.2]} 20. Bxb6 {[%clk 0:01:00.2]} 20... Bxb6 {[%clk 0:02:02.1]} 21. Nd6
{[%clk 0:00:57.7]} 21... Bc8 {[%clk 0:01:51.7]} 22. Nxc8 {[%clk 0:00:53.4]}
22... Raxc8 {[%clk 0:01:51.4]} 23. Qe2 {[%clk 0:00:39.1]} 23... Rfe8 {[%clk
0:01:44.8]} 24. h3 {[%clk 0:00:37.8]} 24... Ne5 {[%clk 0:01:44]} 25. Rac1 {[%clk
0:00:35.4]} 25... Nd3 {[%clk 0:01:38.6]} 26. Rxc8 {[%clk 0:00:35]} 26... Rxc8
{[%clk 0:01:39.5]} 27. Bc2 {[%clk 0:00:19.3]} 27... Nf4 {[%clk 0:01:35.4]} 28.
Qd2 {[%clk 0:00:13.6]} 28... N4xd5 {[%clk 0:01:33.9]} 29. Bxe4 {[%clk
0:00:11.2]} 29... Nc7 {[%clk 0:01:16.9]} 30. Bb7 {[%clk 0:00:09.7]} 30... Rb8
{[%clk 0:01:16.7]} 31. Bc6 {[%clk 0:00:05.2]} 31... Ne6 {[%clk 0:01:16.4]} 32.
Rd1 {[%clk 0:00:04.4]} 32... g6 {[%clk 0:01:15.4]} 33. Qe2 {[%clk 0:00:03]}
33... Bd4 {[%clk 0:01:13.5]} 34. Rc1 {[%clk 0:00:02.2]} 34... Rxb2 {[%clk
0:01:13]} 35. Rc2 {[%clk 0:00:02.6]} 35... Rb1+ {[%clk 0:01:13.4]} 36. Kh2
{[%clk 0:00:02.8]} 36... Kg7 {[%clk 0:01:11.2]} 37. Rd2 {[%clk 0:00:02]} 37...
Rc1 {[%clk 0:01:08.2]} 38. Bf3 {[%clk 0:00:02.2]} 38... Bc5 {[%clk 0:01:05.3]}
39. Bg4 {[%clk 0:00:02.7]} 39... Ng5 {[%clk 0:01:02.6]} 40. h4 {[%clk
0:00:02.3]} 40... Nge4 {[%clk 0:01:02.9]} 41. Rc2 {[%clk 0:00:02.3]} 41... Rxc2
{[%clk 0:01:01.7]} 42. Qxc2 {[%clk 0:00:02.5]} 42... Nxg4+ {[%clk 0:01:02.4]}
43. Kg1 {[%clk 0:00:01.5]} 43... Bxf2+ {[%clk 0:01:01.9]} 44. Kf1 {[%clk
0:00:01.7]} 44... Ne3+ {[%clk 0:01:01.9]} 45. Ke2 {[%clk 0:00:01.3]} 45... Nxc2
{[%clk 0:01:02.8]} 46. Kd3 {[%clk 0:00:01.3]} 46... Nb4+ {[%clk 0:01:02]} 47.
Kxe4 {[%clk 0:00:01.8]} 47... Nxa2 {[%clk 0:01:02.6]} 48. Kf3 {[%clk 0:00:01.4]}
48... Bxh4 {[%clk 0:01:02.4]} 49. g3 {[%clk 0:00:01.5]} 49... Bf6 {[%clk
0:01:02.8]} 50. g4 {[%clk 0:00:01.9]} 50... Nc3 {[%clk 0:01:02.6]} 51. Ke3
{[%clk 0:00:02.1]} 51... a5 {[%clk 0:01:02.8]} 52. Kd3 {[%clk 0:00:02.5]} 52...
a4 {[%clk 0:01:03.3]} 53. Kc2 {[%clk 0:00:02.7]} 53... h5 {[%clk 0:01:03.4]} 54.
Kb2 {[%clk 0:00:03.1]} 54... hxg4 {[%clk 0:01:03.3]} 0-1

[Event "*** Titled Tuesday Blitz"]
[Site "Chess.com"]
[Date "2021.02.02"]
[Round "10"]
[White "Vaathi_Coming"]
[Black "elohunter1999"]
[Result "1-0"]
[WhiteElo "2839"]
[BlackElo "2676"]
[TimeControl "180+1"]
[EndTime "11:56:13 PST"]
[Termination "Vaathi_Coming won by checkmate"]

1. Nf3 {[%clk 0:02:58.9]} 1... d5 {[%clk 0:02:56.8]} 2. b3 {[%clk 0:02:58.7]}
2... c5 {[%clk 0:02:56.1]} 3. Bb2 {[%clk 0:02:58.7]} 3... f6 {[%clk 0:02:56.1]}
4. e3 {[%clk 0:02:45.6]} 4... e5 {[%clk 0:02:55.2]} 5. c4 {[%clk 0:02:40.3]}
5... d4 {[%clk 0:02:54.6]} 6. exd4 {[%clk 0:02:39.6]} 6... cxd4 {[%clk
0:02:54.5]} 7. Bd3 {[%clk 0:02:34]} 7... Nc6 {[%clk 0:02:52.4]} 8. O-O {[%clk
0:02:32.9]} 8... Bc5 {[%clk 0:02:29.6]} 9. Nh4 {[%clk 0:02:14.5]} 9... Be6
{[%clk 0:01:43.3]} 10. Nf5 {[%clk 0:01:43.5]} 10... Qd7 {[%clk 0:01:37.2]} 11.
Ng3 {[%clk 0:01:36.7]} 11... Nge7 {[%clk 0:01:31.4]} 12. f4 {[%clk 0:01:35.7]}
12... O-O {[%clk 0:01:29.2]} 13. f5 {[%clk 0:01:30.4]} 13... Bf7 {[%clk
0:01:26.1]} 14. Na3 {[%clk 0:01:29]} 14... Nb4 {[%clk 0:01:13.8]} 15. Be4 {[%clk
0:01:28.6]} 15... d3+ {[%clk 0:01:07.1]} 16. Kh1 {[%clk 0:01:28.5]} 16... Bd4
{[%clk 0:01:07.7]} 17. Bc3 {[%clk 0:01:24.1]} 17... a5 {[%clk 0:01:01.6]} 18.
Nb5 {[%clk 0:01:22.3]} 18... Bxc3 {[%clk 0:01:01.3]} 19. Nxc3 {[%clk 0:01:02.7]}
19... Rad8 {[%clk 0:00:57.5]} 20. Rf3 {[%clk 0:01:01.7]} 20... Nec6 {[%clk
0:00:50.5]} 21. a3 {[%clk 0:01:00.4]} 21... Na6 {[%clk 0:00:41.3]} 22. Rxd3
{[%clk 0:01:00.3]} 22... Qe7 {[%clk 0:00:41]} 23. Bd5 {[%clk 0:00:58.6]} 23...
Nc5 {[%clk 0:00:39.3]} 24. Re3 {[%clk 0:00:58.9]} 24... Nd4 {[%clk 0:00:37]} 25.
b4 {[%clk 0:00:55.3]} 25... Ncb3 {[%clk 0:00:36]} 26. Rb1 {[%clk 0:00:53.7]}
26... axb4 {[%clk 0:00:36.3]} 27. axb4 {[%clk 0:00:54.3]} 27... Qxb4 {[%clk
0:00:35]} 28. Qg4 {[%clk 0:00:40.3]} 28... Bxd5 {[%clk 0:00:32.1]} 29. Nxd5
{[%clk 0:00:40.6]} 29... Qxc4 {[%clk 0:00:24.9]} 30. Nh5 {[%clk 0:00:36.4]}
30... Rf7 {[%clk 0:00:13.6]} 31. Ndxf6+ {[%clk 0:00:35.4]} 31... Kh8 {[%clk
0:00:13.9]} 32. Nxh7 {[%clk 0:00:35.2]} 32... Qc8 {[%clk 0:00:06]} 33. Ng5
{[%clk 0:00:27.3]} 33... Rxf5 {[%clk 0:00:05.8]} 34. Rh3 {[%clk 0:00:19.6]}
34... Rf1+ {[%clk 0:00:05.2]} 35. Rxf1 {[%clk 0:00:19.2]} 35... Qxg4 {[%clk
0:00:04.8]} 36. Nf6+ {[%clk 0:00:19.1]} 36... Qxh3 {[%clk 0:00:05]} 37. Nf7#
{[%clk 0:00:19.7]} 1-0

[Event "*** Titled Tuesday Blitz"]
[Site "Chess.com"]
[Date "2021.02.02"]
[Round "10"]
[White "Vesper2018"]
[Black "BvsN"]
[Result "1-0"]
[WhiteElo "2581"]
[BlackElo "2376"]
[TimeControl "180+1"]
[EndTime "11:56:14 PST"]
[Termination "Vesper2018 won on time"]

1. e4 {[%clk 0:03:00.9]} 1... c5 {[%clk 0:02:59.3]} 2. Nc3 {[%clk 0:03:00.5]}
2... e6 {[%clk 0:02:58.7]} 3. Nge2 {[%clk 0:02:59.5]} 3... a6 {[%clk 0:02:56.6]}
4. g3 {[%clk 0:02:58]} 4... b5 {[%clk 0:02:55.5]} 5. Bg2 {[%clk 0:02:58.5]} 5...
Bb7 {[%clk 0:02:56.1]} 6. d4 {[%clk 0:02:58.6]} 6... cxd4 {[%clk 0:02:54.1]} 7.
Nxd4 {[%clk 0:02:58.5]} 7... Ne7 {[%clk 0:02:49.3]} 8. O-O {[%clk 0:02:56.4]}
8... Nec6 {[%clk 0:02:47]} 9. Be3 {[%clk 0:02:48.6]} 9... Nxd4 {[%clk
0:02:45.7]} 10. Qxd4 {[%clk 0:02:46.1]} 10... Nc6 {[%clk 0:02:44.9]} 11. Qd2
{[%clk 0:02:46.7]} 11... Ne5 {[%clk 0:02:39.8]} 12. b3 {[%clk 0:02:45.6]} 12...
Rc8 {[%clk 0:02:39]} 13. Ne2 {[%clk 0:02:44.4]} 13... Be7 {[%clk 0:02:33.5]} 14.
Bd4 {[%clk 0:02:42.8]} 14... f6 {[%clk 0:02:32.1]} 15. Rfd1 {[%clk 0:02:28.3]}
15... Qc7 {[%clk 0:02:05.6]} 16. c3 {[%clk 0:02:16.3]} 16... Bc6 {[%clk
0:01:44.7]} 17. f4 {[%clk 0:02:12]} 17... Nf7 {[%clk 0:01:41]} 18. Rac1 {[%clk
0:02:07.5]} 18... O-O {[%clk 0:01:39.5]} 19. Qe3 {[%clk 0:02:06]} 19... e5
{[%clk 0:01:32.2]} 20. Bb6 {[%clk 0:02:01.7]} 20... Qb7 {[%clk 0:01:31.5]} 21.
c4 {[%clk 0:01:52.8]} 21... bxc4 {[%clk 0:01:28.5]} 22. bxc4 {[%clk 0:01:52.3]}
22... Rb8 {[%clk 0:01:18.6]} 23. c5 {[%clk 0:01:49.2]} 23... Rbc8 {[%clk
0:01:08.7]} 24. f5 {[%clk 0:01:45.5]} 24... Ng5 {[%clk 0:01:05.9]} 25. Nc3
{[%clk 0:01:44.1]} 25... Bd8 {[%clk 0:00:58.1]} 26. Rb1 {[%clk 0:01:42.9]} 26...
Bxb6 {[%clk 0:00:57.5]} 27. Rxb6 {[%clk 0:01:41.7]} 27... Qa8 {[%clk 0:00:55.9]}
28. Nd5 {[%clk 0:01:36.5]} 28... Rfe8 {[%clk 0:00:49.2]} 29. Bf1 {[%clk
0:01:24.5]} 29... Bb5 {[%clk 0:00:45]} 30. Bxb5 {[%clk 0:01:20.3]} 30... axb5
{[%clk 0:00:45.1]} 31. Rxb5 {[%clk 0:01:20.2]} 31... Qxa2 {[%clk 0:00:36.6]} 32.
h4 {[%clk 0:00:56.4]} 32... Nh3+ {[%clk 0:00:14.3]} 33. Kf1 {[%clk 0:00:56.5]}
33... Qh2 {[%clk 0:00:07.8]} 34. Qf3 {[%clk 0:00:55.2]} 34... Ra8 {[%clk
0:00:05.2]} 35. Qg2 {[%clk 0:00:54.8]} 35... Ra2 {[%clk 0:00:02.9]} 36. Qxh2
{[%clk 0:00:51.7]} 36... Rxh2 {[%clk 0:00:03.8]} 37. Rdb1 {[%clk 0:00:47.2]}
37... Rf2+ {[%clk 0:00:03.8]} 38. Ke1 {[%clk 0:00:46.9]} 38... Rh2 {[%clk
0:00:03.2]} 39. Rb8 {[%clk 0:00:45.2]} 39... Rxb8 {[%clk 0:00:02.3]} 40. Rxb8+
{[%clk 0:00:44.8]} 40... Kf7 {[%clk 0:00:03.2]} 41. Rb7 {[%clk 0:00:45.2]} 41...
Ke8 {[%clk 0:00:03]} 42. Nb6 {[%clk 0:00:42.1]} 42... Rg2 {[%clk 0:00:01.8]} 43.
Nxd7 {[%clk 0:00:38.1]} 43... Rxg3 {[%clk 0:00:01.1]} 44. Kd2 {[%clk 0:00:36.7]}
1-0